bitfinex-derivatives/quotes_ETHF0:USTF0_20241230
["timestamp","ask_amount","ask_price","bid_price","bid_amount"]
[1735584730602,0.4524,3400.2,3399.8,3.2078]
[1735584730803,0.29439,3399.9,3399.8,3.2078]
[1735584731205,0.29438,3400.1,3399.9,0.29439]
[1735584731396,0.29438,3400.0,3399.8,3.5022]
[1735584731997,0.29438,3400.1,3399.8,3.5022]
[1735584732197,0.4524,3400.2,3399.8,3.2078]
[1735584732398,0.29439,3400.0,3399.8,3.2078]
[1735584732701,0.29439,3400.0,3399.8,3.5022]
[1735584733504,0.4524,3400.2,3399.8,3.2078]
[1735584733705,0.29439,3399.9,3399.8,3.2078]
[1735584734001,0.29439,3400.0,3399.8,3.5022]
[1735584734202,0.29439,3399.9,3399.8,3.2078]
[1735584736503,0.29439,3399.9,3399.3,3.2078]
[1735584736504,0.29443,3399.4,3399.3,3.2078]
[1735584737302,0.29443,3399.4,3399.3,3.63258139]
[1735584737804,0.4227,3399.5,3399.3,3.63258139]
[1735584738103,0.4227,3399.5,3399.3,3.2078]
[1735584738104,0.29443,3399.4,3399.3,3.2078]
[1735584738303,0.29443,3399.4,3399.3,3.63251761]
[1735584739005,1.46426438,3399.9,3399.3,3.63251761]
[1735584739006,5.75971791,3399.7,3399.3,3.63251761]
[1735584739198,5.75971791,3399.7,3399.3,3.2078]
[1735584739404,5.75971791,3399.7,3399.4,0.85071802]
[1735584739594,5.75971791,3399.7,3399.5,0.42461802]
[1735584739794,5.75971791,3399.7,3399.6,0.71903802]
[1735584740406,0.2944,3399.9,3399.6,0.71902802]
[1735584740603,0.2944,3399.9,3399.6,0.29441]
[1735584741000,6.22161791,3400.0,3399.5,0.4578]
[1735584741200,6.22161791,3400.0,3399.6,0.42447626]
[1735584741404,6.22161791,3400.0,3399.5,0.4578]
[1735584741603,0.2944,3399.9,3399.6,0.71884972]
[1735584741797,6.22161791,3400.0,3399.7,3.2078]
[1735584742005,5.75971791,3400.0,3399.9,2.36728013]
[1735584742207,5.75971791,3400.0,3399.9,3.08612505]
[1735584742401,5.75971791,3400.0,3399.9,3.08595448]
[1735584742597,5.75971791,3400.0,3399.9,43.88595448]
[1735584742809,5.75971791,3400.0,3399.9,43.88579254]
[1735584743403,0.29435,3400.4,3399.9,48.59140254]
[1735584743606,0.29435,3400.4,3400.3,3.50216]
[1735584743810,0.29435,3400.4,3400.3,3.92628241]
[1735584744007,0.29434,3400.5,3400.4,0.29434]
[1735584744207,0.73581,3400.7,3400.4,0.42395901]
[1735584744406,0.29435,3400.4,3400.3,3.94675]
[1735584744707,0.29435,3400.4,3400.3,4.0761707]
[1735584745010,0.29435,3400.4,3400.3,4.3705307]
[1735584745208,0.8579,3400.8,3400.3,4.0761707]
[1735584745408,0.29435,3400.5,3400.4,0.42373527]
[1735584745809,0.29435,3400.5,3400.4,0.71808527]
[1735584746208,0.29435,3400.5,3400.4,0.42373527]
[1735584747403,0.8579,3400.8,3400.3,3.6524]
[1735584747615,0.29435,3400.5,3400.3,3.94675]
[1735584748313,0.29435,3400.5,3400.4,0.29435]
[1735584749122,0.8579,3400.8,3400.3,3.6524]
[1735584749307,0.29433,3400.7,3400.3,3.6524]
[1735584749505,0.29433,3400.7,3400.4,0.42351731]
[1735584749710,0.29433,3400.7,3400.6,0.29433]
[1735584750011,0.4177,3400.8,3400.3,3.6524]
[1735584750316,0.4177,3400.8,3400.5,0.29434]
[1735584750317,0.29433,3400.6,3400.5,0.29434]
[1735584750612,0.29433,3400.7,3400.5,0.29433]
[1735584750818,0.4177,3400.8,3400.3,3.6524]
[1735584751011,0.71202,3400.8,3400.6,0.29433]
[1735584751316,5.75971791,3401.1,3401.0,0.2943]
[1735584752609,0.4394,3401.2,3401.0,0.2943]
[1735584752806,0.4394,3401.2,3401.0,0.29429]
[1735584753005,0.4394,3401.2,3401.1,0.29429]
[1735584753209,0.4394,3401.2,3401.0,0.29429]
[1735584753612,0.4394,3401.2,3401.0,0.2943]
[1735584754208,0.4345,3401.3,3400.9,0.4501]
[1735584754414,0.29428,3401.2,3400.9,0.7444]
[1735584755310,0.4345,3401.3,3401.1,3.2078]
[1735584755510,0.72878,3401.3,3401.1,3.2078]
[1735584755712,0.4345,3401.3,3401.1,3.2078]
[1735584755920,0.29428,3401.2,3401.1,3.2078]
[1735584756315,0.72877,3401.3,3401.1,3.2078]
[1735584756512,0.4345,3401.3,3401.1,3.50208]
[1735584756717,0.4345,3401.3,3401.1,3.2078]
[1735584756909,0.4345,3401.3,3401.1,3.50208]
[1735584757115,0.4345,3401.3,3401.2,0.4244325]
[1735584757514,0.72877,3401.3,3401.2,0.4244325]
[1735584758121,0.4345,3401.3,3401.2,0.7187125]
[1735584758617,0.29426,3401.4,3401.2,0.7187125]
[1735584758818,0.29426,3401.4,3401.3,0.4244325]
[1735584759725,0.73335,3401.6,3401.3,0.7186925]
[1735584760022,0.73335,3401.6,3401.2,0.29427]
[1735584760023,0.29426,3401.5,3401.2,0.29427]
[1735584760321,0.29426,3401.5,3401.3,0.71863925]
[1735584760520,0.29426,3401.5,3401.1,5.57508013]
[1735584760825,0.4391,3401.6,3401.3,0.29427]
[1735584761016,0.73335,3401.6,3401.3,0.29427]
[1735584761217,0.29426,3401.5,3401.2,0.29427]
[1735584761421,0.29426,3401.5,3401.3,0.42442899]
[1735584761621,0.29426,3401.5,3401.2,0.29427]
[1735584761824,0.29426,3401.5,3401.3,0.42452518]
[1735584762017,0.29426,3401.5,3401.2,0.29427]
[1735584762212,0.29426,3401.5,3401.3,0.42452415]
[1735584762414,0.4391,3401.6,3401.2,0.29427]
[1735584762415,0.29426,3401.4,3401.2,0.29427]
[1735584762630,0.29426,3401.5,3401.3,0.42451915]
[1735584762923,0.29426,3401.5,3401.2,0.29427]
[1735584763224,0.29426,3401.5,3401.3,0.42450616]
[1735584763425,0.29426,3401.5,3401.2,0.29427]
[1735584763617,0.29426,3401.5,3401.3,0.42449245]
[1735584763818,0.29426,3401.5,3401.2,0.29427]
[1735584764024,0.29426,3401.4,3401.3,0.42449257]
[1735584764321,0.29428,3401.2,3401.1,3.2078]
[1735584766831,0.29428,3401.2,3401.1,3.50209]
[1735584767030,0.29428,3401.2,3401.1,3.2078]
[1735584768427,0.29428,3401.2,3401.1,3.63328188]
[1735584768821,0.29428,3401.2,3401.1,3.63328943]
[1735584769020,0.29428,3401.2,3401.1,3.2078]
[1735584769225,0.4391,3401.6,3400.8,2.36728013]
[1735584769425,0.4391,3401.6,3400.7,3.2078]
[1735584769631,0.29431,3400.8,3400.7,3.2078]
[1735584769828,0.29431,3400.8,3400.7,6.29519297]
[1735584770030,0.29431,3400.8,3400.7,6.00087297]
[1735584770731,0.29431,3400.8,3400.7,3.63359284]
[1735584771732,0.29431,3400.8,3400.7,3.63412623]
[1735584773131,0.29431,3400.8,3400.7,0.42640604]
[1735584773338,3.50211,3400.8,3400.7,0.42640604]
[1735584773835,0.29431,3400.8,3400.7,0.42640604]
[1735584774034,9.85986116,3400.8,3400.7,0.42640604]
[1735584776138,9.85986116,3400.8,3400.7,0.42655955]
[1735584778341,9.56555116,3400.8,3399.9,3.2078]
[1735584778649,0.73583,3400.7,3399.9,3.2078]
[1735584778841,9.56555116,3400.8,3400.4,3.2078]
[1735584779443,0.29433,3400.6,3400.4,3.50215]
[1735584779644,3.46111262,3400.5,3400.4,3.50215]
[1735584780237,3.46111262,3400.5,3400.4,8.50215]
[1735584780744,3.46111262,3400.5,3400.4,3.50215]
[1735584780945,0.29434,3400.5,3400.4,3.6555]
[1735584781143,0.29434,3400.5,3400.4,3.2078]
[1735584781340,0.29434,3400.5,3400.4,3.91639242]
[1735584781540,0.4552,3400.6,3399.6,2.36728013]
[1735584781751,0.2944,3399.8,3399.6,2.81498013]
[1735584781952,0.2944,3399.8,3399.7,1.4435628]
[1735584783149,0.2944,3399.8,3399.7,0.7085528]
[1735584783450,0.2944,3399.8,3399.6,0.4477]
[1735584783451,0.29441,3399.7,3399.6,0.74211]
[1735584783651,0.29441,3399.7,3399.6,3.10939013]
[1735584783851,3.46111262,3400.2,3399.6,2.81498013]
[1735584784050,0.29438,3400.0,3399.9,3.2078]
[1735584784650,3.46111262,3400.2,3399.6,2.81498013]
[1735584784854,0.29441,3399.7,3399.6,3.10939013]
[1735584785254,0.29441,3399.8,3399.7,0.29439]
[1735584785457,0.2944,3399.9,3399.8,0.29439]
[1735584786651,0.2944,3399.9,3399.6,2.81498013]
[1735584786652,3.46111262,3400.1,3399.6,2.81498013]
[1735584786856,3.46111262,3400.1,3400.0,0.29438]
[1735584787058,3.75548262,3400.1,3400.0,0.29438]
[1735584787252,3.75548262,3400.1,3400.0,41.55088]
[1735584788058,3.46111262,3400.1,3400.0,41.55088]
[1735584788260,3.75548262,3400.1,3400.0,41.55088]
[1735584788762,0.29437,3400.1,3400.0,41.55088]
[1735584789656,0.29437,3400.1,3400.0,0.4565]
[1735584789863,0.29438,3400.0,3399.9,3.2078]
[1735584790062,0.71998,3400.0,3399.9,3.2078]
[1735584790355,0.71998,3400.0,3399.9,3.63692744]
[1735584790762,0.71998,3400.0,3399.9,0.42912744]
[1735584790962,0.29443,3399.5,3399.4,4.60633316]
[1735584791156,0.29443,3399.5,3399.4,5.03556823]
[1735584791458,0.29443,3399.5,3399.4,0.72367507]
[1735584792057,0.29443,3399.5,3399.4,0.42923507]
[1735584793361,5.83247665,3399.6,3398.5,8.10865316]
[1735584793362,0.29451,3398.7,3398.5,8.10865316]
[1735584793561,0.29451,3398.7,3398.6,0.42950303]
[1735584794962,0.29451,3398.7,3398.6,0.72401303]
[1735584795159,0.29451,3398.7,3398.6,0.42950303]
[1735584795358,0.2945,3398.8,3398.6,0.72401303]
[1735584795664,3.46519652,3399.0,3398.7,0.42950303]
[1735584795962,0.29449,3398.9,3398.8,0.42950303]
[1735584796159,0.29451,3398.7,3398.5,3.50232]
[1735584796459,0.29451,3398.7,3398.6,0.42918201]
[1735584796656,0.29451,3398.7,3398.5,3.50232]
[1735584796657,0.29451,3398.7,3398.5,3.2078]
[1735584796855,0.29451,3398.7,3398.6,0.42910267]
[1735584797057,0.4739,3399.1,3398.6,0.42910267]
[1735584797256,0.4739,3399.1,3398.7,0.72360267]
[1735584797257,0.29448,3399.0,3398.7,0.72360267]
[1735584797456,3.93909652,3399.1,3398.8,0.29449]
[1735584797658,4.23356652,3399.1,3398.9,40.8]
[1735584798555,0.76837,3399.1,3398.9,40.8]
[1735584799264,0.76837,3399.1,3398.8,0.29449]
[1735584799860,0.76837,3399.1,3398.8,41.09449]
[1735584800159,0.29449,3398.9,3398.6,0.29451]
[1735584800464,0.29448,3399.0,3398.7,0.72344897]
[1735584800663,0.29448,3399.0,3398.8,0.42894897]
[1735584800860,0.29448,3399.0,3398.7,41.0945]
[1735584801055,0.4739,3399.1,3398.5,3.2078]
[1735584801263,0.4739,3399.1,3398.6,0.42905951]
[1735584801264,0.2945,3398.7,3398.6,0.42905951]
[1735584801457,2.36728013,3399.0,3398.1,3.2078]
[1735584801658,0.29454,3398.3,3398.2,0.42911175]
[1735584801858,0.29454,3398.3,3398.1,3.2078]
[1735584802057,0.73623,3398.9,3398.1,3.2078]
[1735584802058,0.29453,3398.4,3398.1,3.2078]
[1735584802256,2.36728013,3399.0,3398.1,3.2078]
[1735584802257,0.29454,3398.3,3398.1,3.2078]
[1735584802457,0.73624,3398.8,3398.1,3.2078]
[1735584802458,0.29455,3398.2,3398.1,3.2078]
[1735584802664,0.4687,3398.2,3398.1,3.2078]
[1735584802864,0.76325,3398.2,3398.1,3.2078]
[1735584803467,0.4687,3398.2,3398.1,3.2078]
[1735584803662,0.9617,3398.7,3398.1,3.2078]
[1735584803962,3.46519652,3398.8,3398.5,3.2078]
[1735584804160,3.46519652,3398.8,3398.7,0.2945]
[1735584804470,3.46519652,3398.9,3398.8,0.29449]
[1735584804761,3.46519652,3398.9,3398.8,41.52328543]
[1735584805266,3.46519652,3398.9,3398.8,0.72328543]
[1735584805462,0.76315,3399.3,3399.1,0.29446]
[1735584805760,0.29447,3399.2,3398.9,41.09448]
[1735584805962,0.29447,3399.2,3398.9,0.29448]
[1735584806265,0.29447,3399.2,3399.0,0.29447]
[1735584807062,0.4687,3399.3,3399.1,0.29447]
[1735584807365,0.4687,3399.3,3398.9,3.2078]
[1735584807366,0.29446,3399.2,3399.0,0.29447]
[1735584807664,0.76316,3399.3,3399.0,0.29447]
[1735584808465,0.76316,3399.3,3398.9,3.2078]
[1735584808767,0.76316,3399.3,3399.0,0.72303443]
[1735584808957,0.76316,3399.3,3399.1,0.42856443]
[1735584809162,0.76316,3399.3,3399.0,0.29447]
[1735584809362,0.76316,3399.3,3399.1,0.42860697]
[1735584809561,0.76316,3399.3,3399.0,0.29447]
[1735584809867,0.76316,3399.3,3399.1,0.42880245]
[1735584810068,0.76316,3399.3,3399.0,0.29447]
[1735584810266,0.76316,3399.3,3399.1,0.42875806]
[1735584810468,0.76316,3399.3,3399.2,0.42874524]
[1735584811670,0.76316,3399.3,3399.2,0.42887904]
[1735584812168,0.29444,3399.5,3399.2,0.72333904]
[1735584812368,0.29444,3399.5,3399.3,0.42887904]
[1735584812561,0.29444,3399.5,3399.4,0.42887904]
[1735584813370,0.29444,3399.5,3399.0,0.74378]
[1735584813371,5.57508013,3399.7,3398.9,3.2078]
[1735584813568,5.57508013,3399.7,3399.0,0.42903026]
[1735584813569,0.29447,3399.1,3399.0,0.42903026]
[1735584813971,0.29451,3398.6,3398.5,3.2078]
[1735584814169,0.29451,3398.6,3398.5,3.63702738]
[1735584814673,0.29451,3398.6,3398.5,3.63717745]
[1735584815173,0.29451,3398.6,3398.5,3.63721498]
[1735584816570,0.29451,3398.6,3398.5,3.63746664]
[1735584817664,0.29451,3398.6,3398.5,3.2078]
[1735584817868,0.29451,3398.6,3398.5,3.6377886]
[1735584820877,0.29451,3398.6,3398.5,3.63848024]
[1735584821470,0.29451,3398.7,3398.6,0.29451]
[1735584821676,0.29451,3398.7,3398.6,0.72519024]
[1735584822178,0.29451,3398.7,3398.6,0.43068024]
[1735584823976,0.29451,3398.7,3398.6,0.43093836]
[1735584824281,0.29451,3398.7,3398.6,0.43094312]
[1735584826871,0.29451,3398.7,3398.6,0.43093266]
[1735584827071,5.86959013,3398.7,3398.6,0.43093266]
[1735584827379,0.29457,3398.0,3397.9,3.2078]
[1735584827578,0.29457,3398.0,3397.9,0.43095867]
[1735584827974,0.4766,3398.6,3397.9,3.63875867]
[1735584828181,0.4766,3398.6,3398.1,0.29455]
[1735584828182,0.29454,3398.3,3398.1,0.29455]
[1735584828381,0.29454,3398.4,3398.2,0.72550867]
[1735584828579,0.29454,3398.4,3398.3,0.43095867]
[1735584830684,3.75411532,3398.4,3398.3,0.43095867]
[1735584831279,6.12139545,3398.4,3398.3,0.43095867]
[1735584831983,2.66182013,3398.4,3398.3,0.43095867]
[1735584833186,7.27457722,3398.4,3398.3,0.43059947]
[1735584833582,7.27457722,3398.4,3397.9,3.50237]
[1735584833583,0.29455,3398.2,3397.9,3.50237]
[1735584833783,0.29455,3398.2,3398.0,0.72517883]
[1735584833984,0.75035,3398.3,3398.1,0.43061883]
[1735584834183,0.75035,3398.3,3398.0,0.29456]
[1735584834184,0.75034,3398.3,3398.2,0.43061883]
[1735584834380,0.75034,3398.3,3398.1,0.29456]
[1735584834586,4.61276709,3398.4,3397.9,3.2078]
[1735584834784,4.61276709,3398.4,3398.3,0.29454]
[1735584835385,4.61276709,3398.4,3398.0,0.73642]
[1735584835386,0.29454,3398.3,3398.1,0.29455]
[1735584835588,4.61276709,3398.4,3397.9,3.50237]
[1735584835589,6.98004722,3398.4,3397.9,3.50237]
[1735584835786,0.29457,3398.0,3397.9,3.2078]
[1735584836186,0.29457,3398.0,3397.9,3.63837259]
[1735584836589,0.29457,3398.0,3397.9,0.43057259]
[1735584836890,0.29457,3398.0,3397.9,0.72514259]
[1735584837589,0.29457,3398.0,3397.9,0.43057259]
[1735584838895,0.78627,3398.0,3397.9,0.43057259]
[1735584839997,5.39903709,3398.0,3397.9,0.43057259]
[1735584841195,4.61276709,3398.0,3397.9,3.93294259]
[1735584841590,0.82456709,3398.0,3397.9,8.93289841]
[1735584841888,9.21554866,3399.0,3398.9,0.29449]
[1735584842098,9.21554866,3399.0,3398.9,5.22770209]
[1735584842293,9.21554866,3399.0,3398.9,46.02770209]
[1735584842493,6.91166149,3399.1,3399.0,0.29448]
[1735584842685,6.91166149,3399.1,3399.0,0.72489209]
[1735584842897,6.91166149,3399.1,3399.0,1.44483681]
[1735584843693,6.91166149,3399.1,3399.0,0.29448]
[1735584843898,2.60570986,3399.2,3399.0,1.62784624]
[1735584844093,2.60570986,3399.2,3399.1,1.46409257]
[1735584844399,2.60570986,3399.2,3399.1,1.16962257]
[1735584844595,5.41928999,3399.2,3399.1,1.16962257]
[1735584844997,3.10804013,3399.2,3399.1,0.43872848]
[1735584845690,0.4463,3399.2,3399.1,0.73319848]
[1735584846091,0.4463,3399.2,3399.1,0.29447]
[1735584846491,0.4605,3399.6,3399.4,0.29444]
[1735584846697,0.4463,3399.5,3399.4,0.29444]
[1735584846999,0.4463,3399.5,3399.2,0.29445]
[1735584847199,0.4463,3399.5,3399.3,0.29445]
[1735584847200,3.91235918,3399.5,3399.3,0.29445]
[1735584847695,3.46605918,3399.5,3399.4,0.29444]
[1735584847900,3.46605918,3399.5,3399.4,3.50224]
[1735584848101,3.46605918,3399.5,3399.4,7.16452013]
[1735584848497,2.31036781,3399.5,3399.4,7.16452013]
[1735584848896,2.31036781,3399.5,3399.4,4.79724]
[1735584849497,1.07416781,3399.5,3399.4,9.79724]
[1735584849697,1.07416781,3399.5,3399.4,50.59724]
[1735584849992,0.79487,3400.3,3400.2,0.29438]
[1735584849993,1.07416781,3400.3,3400.2,0.29438]
[1735584851003,1.36853781,3400.3,3400.2,0.29438]
[1735584851196,1.07416781,3400.3,3400.2,0.29438]
[1735584851402,1.07416781,3400.3,3400.1,3.2078]
[1735584851403,0.4921,3400.4,3400.3,0.29437]
[1735584852397,3.46605918,3400.7,3400.2,2.36728013]
[1735584852598,3.46605918,3400.7,3400.5,3.2078]
[1735584852599,0.75934,3400.6,3400.5,3.2078]
[1735584852798,0.465,3400.6,3400.5,3.2078]
[1735584853601,0.465,3400.6,3400.5,3.50215]
[1735584854499,0.465,3400.6,3400.5,3.2078]
[1735584855298,0.75934,3400.6,3400.5,3.2078]
[1735584855498,0.465,3400.6,3400.5,3.2078]
[1735584856803,0.465,3400.6,3400.5,3.50215]
[1735584857009,0.465,3400.6,3400.5,3.2078]
[1735584857204,0.75934,3400.6,3400.5,3.2078]
[1735584857897,0.465,3400.6,3400.5,3.2078]
[1735584858507,0.75934,3400.6,3400.5,3.2078]
[1735584860710,0.465,3400.6,3400.1,3.2078]
[1735584860908,2.36728013,3400.4,3400.1,3.2078]
[1735584861208,2.36728013,3400.4,3399.6,3.2078]
[1735584861405,0.2944,3400.0,3399.7,0.29441]
[1735584861602,0.4976,3399.9,3399.6,3.2078]
[1735584861904,0.4933,3399.8,3399.6,3.50222]
[1735584862105,0.78771,3399.8,3399.6,3.2078]
[1735584862305,0.4933,3399.8,3399.6,3.50222]
[1735584862506,0.4933,3399.8,3399.7,0.29442]
[1735584863913,0.4933,3399.8,3399.6,3.50222]
[1735584864212,0.4976,3399.9,3399.8,0.29441]
[1735584866414,0.4976,3399.9,3399.7,0.29441]
[1735584867312,0.4976,3399.9,3399.8,0.29441]
[1735584867513,0.4976,3399.9,3399.8,0.73165147]
[1735584869311,0.4976,3399.9,3399.8,1.43181216]
[1735584869810,0.4976,3399.9,3399.8,42.23181216]
[1735584870014,0.4976,3399.9,3399.8,1.43181216]
[1735584870316,0.4976,3399.9,3399.8,1.43332323]
[1735584871007,3.2078,3400.5,3399.8,1.13891323]
[1735584871217,0.4569,3400.3,3400.2,0.29438]
[1735584871511,0.4569,3400.3,3400.2,1.43329323]
[1735584872413,0.4569,3400.3,3400.2,2.72629323]
[1735584872909,0.4569,3400.3,3400.2,2.72681961]
[1735584875919,0.4569,3400.3,3400.2,2.72090647]
[1735584876421,0.29434,3400.7,3400.6,0.29433]
[1735584876720,0.29434,3400.7,3400.6,1.42785647]
[1735584877014,0.29434,3400.7,3400.6,1.13352647]
[1735584878418,0.29434,3400.7,3400.6,1.42786647]
[1735584878622,0.29434,3400.7,3400.6,1.13352647]
[1735584878812,2.66162013,3400.7,3400.6,0.69755475]
[1735584879018,2.66161013,3400.7,3400.6,1.13387407]
[1735584879418,2.66161013,3400.7,3400.6,1.1339699]
[1735584880618,2.36728013,3400.7,3400.2,0.29437]
[1735584880822,2.36728013,3400.7,3400.0,3.2078]
[1735584880823,0.29436,3400.4,3400.3,1.13408882]
[1735584882029,0.4815,3400.6,3400.3,1.13411836]
[1735584882228,0.4815,3400.6,3400.2,0.29437]
[1735584882229,0.29435,3400.5,3400.4,1.13413025]
[1735584882422,0.29435,3400.5,3400.4,0.43619937]
[1735584883521,0.29435,3400.5,3400.4,1.13415264]
[1735584884526,4.59858449,3400.6,3400.5,0.29435]
[1735584884727,4.59858449,3400.6,3400.5,4.63630264]
[1735584884923,4.59858449,3400.6,3400.5,3.50215]
[1735584885224,3.45951936,3400.6,3400.5,45.14179846]
[1735584885424,3.45951936,3400.6,3400.5,45.43614846]
[1735584886223,3.92791936,3400.8,3400.5,45.14179846]
[1735584886418,3.92791936,3400.8,3400.7,0.29433]
[1735584886621,3.92791936,3400.8,3400.7,1.42832846]
[1735584887133,3.92791936,3400.8,3400.7,1.13399846]
[1735584887327,4.22223936,3400.8,3400.7,1.13399846]
[1735584887633,3.13000013,3400.8,3400.7,1.13399846]
[1735584888038,0.29433,3400.7,3400.6,1.293]
[1735584888332,0.29433,3400.7,3400.6,2.43407469]
[1735584888529,0.29433,3400.7,3400.6,2.43403224]
[1735584889426,6.04501681,3400.7,3400.6,2.43403224]
[1735584889627,6.04501681,3400.7,3400.6,1.14103224]
[1735584889826,0.29434,3400.6,3400.5,3.2078]
[1735584890630,0.29439,3400.1,3399.9,0.2944]
[1735584890832,0.4778,3400.0,3399.9,0.2944]
[1735584891420,0.4778,3400.0,3399.8,3.2078]
[1735584891630,0.2944,3399.9,3399.8,3.2078]
[1735584891830,0.4778,3400.0,3399.8,3.2078]
[1735584892020,0.2944,3399.9,3399.8,3.2078]
[1735584893232,3.46649667,3399.9,3399.8,3.2078]
[1735584893633,3.76089667,3399.9,3399.8,3.2078]
[1735584894233,0.4968,3400.0,3399.5,1.293]
[1735584894234,5.11707116,3400.0,3399.5,1.293]
[1735584894434,0.29443,3399.6,3399.4,3.50224]
[1735584894644,0.29442,3399.7,3399.5,0.29443]
[1735584894832,5.11707116,3400.0,3399.4,4.5008]
[1735584895132,5.11707116,3400.0,3399.4,5.2369]
[1735584895133,4.62027116,3400.0,3399.4,5.2369]
[1735584895642,3.76116352,3399.8,3399.7,0.29441]
[1735584896237,0.29442,3399.7,3399.6,0.29442]
[1735584898232,0.29442,3399.7,3399.6,2.66170013]
[1735584898930,0.29442,3399.7,3399.6,0.29442]
[1735584900530,0.29444,3399.6,3399.5,0.29443]
[1735584900734,0.29444,3399.5,3399.4,9.10713316]
[1735584901738,0.29444,3399.5,3399.4,9.53764379]
[1735584902238,0.29444,3399.5,3399.4,5.03684379]
[1735584902432,0.29444,3399.5,3399.4,5.03680746]
[1735584907344,0.29444,3399.5,3399.4,5.03632287]
[1735584908441,0.29444,3399.5,3399.4,4.60633316]
[1735584908649,0.29444,3399.5,3399.4,5.03628114]
[1735584910453,0.29444,3399.5,3399.4,0.42994798]
[1735584910647,4.62027116,3399.6,3399.5,0.29444]
[1735584910952,4.62027116,3399.6,3399.5,3.09166811]
[1735584911342,4.62027116,3399.6,3399.5,43.89166811]
[1735584911543,4.62027116,3399.6,3399.5,43.89155286]
[1735584911952,0.29441,3399.8,3399.6,0.29442]
[1735584912147,0.29441,3399.8,3399.7,4.92863273]
[1735584912347,0.29441,3399.8,3399.7,5.41583273]
[1735584913046,0.29441,3399.8,3399.7,4.12483273]
[1735584913251,0.29441,3399.8,3399.7,3.63763273]
[1735584913448,0.29441,3399.8,3399.7,0.42983273]
[1735584913853,3.75598497,3399.8,3399.7,0.42983273]
[1735584914452,3.75598497,3399.8,3399.5,3.2078]
[1735584914648,0.5021,3399.7,3399.6,0.42987799]
[1735584915150,0.5021,3399.7,3399.5,3.2078]
[1735584915151,0.29443,3399.6,3399.5,3.2078]
[1735584915454,0.29443,3399.6,3399.5,3.63778562]
[1735584916051,0.29442,3399.7,3399.5,6.00506575]
[1735584916252,0.29442,3399.7,3399.6,0.72440562]
[1735584916452,0.29442,3399.7,3399.6,0.72450278]
[1735584916652,0.29442,3399.7,3399.6,0.43008278]
[1735584917552,4.19757497,3400.0,3399.5,5.86951013]
[1735584917553,0.29443,3399.6,3399.5,3.50224]
[1735584917751,0.29443,3399.6,3399.5,3.6380284]
[1735584920846,0.79563,3399.6,3399.5,3.6380284]
[1735584922852,0.79563,3399.6,3399.5,0.4302284]
[1735584923659,0.5012,3399.6,3399.2,4.14548013]
[1735584923854,0.79563,3399.6,3399.5,3.2078]
[1735584924054,0.79563,3399.6,3399.5,3.63834731]
[1735584924258,3.46157497,3399.8,3399.7,0.29442]
[1735584924453,0.29441,3399.8,3399.7,0.72495359]
[1735584924652,0.29441,3399.9,3399.8,0.2944]
[1735584924854,0.29441,3399.9,3399.8,0.43053359]
[1735584926859,3.46157497,3400.1,3400.0,0.29439]
[1735584927059,3.46157497,3400.1,3400.0,5.22270474]
[1735584927256,3.75595497,3400.1,3400.0,4.92831474]
[1735584927461,3.75595497,3400.1,3400.0,0.43051474]
[1735584927952,0.29444,3399.4,3399.3,4.60633316]
[1735584928858,0.468,3399.6,3399.2,3.2078]
[1735584929053,0.29445,3399.3,3399.2,3.2078]
[1735584933253,3.92957497,3399.6,3399.2,3.2078]
[1735584933254,3.46157497,3399.6,3399.2,5.57508013]
[1735584933459,3.46157497,3399.6,3399.5,2.66172013]
[1735584933858,3.46157497,3399.6,3399.5,48.46172013]
[1735584934063,4.62027116,3400.4,3399.5,48.16728013]
[1735584934254,0.997,3400.7,3400.3,3.2078]
[1735584934459,0.29436,3400.4,3400.3,4.4978]
[1735584934663,0.29436,3400.4,3400.3,3.2078]
[1735584934960,0.29436,3400.4,3399.9,1.29]
[1735584934961,0.29439,3400.0,3399.9,1.29]
[1735584936265,1.4719,3400.2,3399.6,4.6259973]
[1735584936462,0.29442,3399.7,3399.6,4.6259973]
[1735584937671,0.9966,3399.9,3399.4,3.2078]
[1735584937867,0.29441,3399.8,3399.4,3.2078]
[1735584938071,0.29444,3399.5,3399.4,3.2078]
[1735584940071,0.29444,3399.5,3399.4,3.63510426]
[1735584940770,0.29444,3399.5,3399.4,8.26110156]
[1735584941674,0.29444,3399.5,3399.4,8.26119312]
[1735584941969,0.29444,3399.5,3399.4,3.63519582]
[1735584942170,0.29444,3399.5,3399.4,3.6352046]
[1735584943771,0.29444,3399.5,3399.4,3.63517289]
[1735584944678,0.29444,3399.5,3399.4,3.2078]
[1735584944968,0.29444,3399.5,3399.4,3.6351443]
[1735584946073,0.29444,3399.5,3399.4,0.4273443]
[1735584947874,0.29444,3399.5,3399.4,0.42729906]
[1735584950771,0.29444,3399.5,3399.3,3.2078]
[1735584951074,3.50224,3399.5,3399.4,0.42725855]
[1735584951272,0.29448,3399.0,3398.9,4.6259973]
[1735584952975,0.29448,3399.0,3398.5,1.29]
[1735584952976,0.29451,3398.6,3398.5,1.29]
[1735584955783,0.29452,3398.5,3398.4,4.4978]
[1735584956581,0.29452,3398.5,3398.4,4.79233]
[1735584957489,0.29452,3398.5,3398.4,4.4978]
[1735584957786,0.29452,3398.5,3398.4,4.79233]
[1735584958879,6.08617367,3399.2,3398.4,6.86508013]
[1735584959081,0.29451,3398.8,3398.7,2.66178013]
[1735584959484,5.35385367,3399.1,3398.4,6.86508013]
[1735584959688,0.29452,3398.6,3398.5,0.29451]
[1735584960388,5.35385367,3399.1,3398.4,6.86508013]
[1735584960590,0.29451,3398.7,3398.6,0.2945]
[1735584961592,0.29452,3398.6,3398.5,0.29452]
[1735584962291,0.29451,3398.7,3398.6,0.2945]
[1735584963186,0.29451,3398.7,3398.6,0.71793284]
[1735584963791,0.29451,3398.7,3398.6,0.42343284]
[1735584964188,0.29451,3398.7,3398.6,0.71794284]
[1735584964690,0.29451,3398.7,3398.6,41.51794284]
[1735584965090,0.29451,3398.7,3398.6,41.51820432]
[1735584967990,0.29451,3398.7,3398.6,41.51818978]